Cogmind - Beta 15 @@@ ROGUE MODE // 2025.05.16 @ 18:08:08 Player: Lunace Result: Destroyed by EXE-6 with Concept XC Strikerail Performance ------------- Evolutions (8) 4000 Regions Visited (22) 4400 Robots Destroyed (205) 1025 Value Destroyed (10536) 10536 Prototype IDs (59) 1180 Alien Tech Used (4) 800 Bonus (3301) 3301 TOTAL SCORE: 25242 Bonus ------- High Alert Combat Kills 661 Follower Combat Kills 240 Forged Quantum Companion 1000 Registered with UFD 300 Met Optimus in HQ 500 Met Imprinter 300 Met Zhirov 300 Cogmind --------- Core Integrity 0/1450 Matter 300/300 Energy 64/100 System Corruption 11% Temperature Cool (0) Movement Hovering (66) Location -2/Protoforge Parts ------- > --- POWER (2) -------- (None) > --- PROPULSION (7) --- Gyrokinetic Inverter Gyrokinetic Inverter > --- UTILITY (11) ----- Experimental Optical Array Improved Melee Analysis Suite Advanced Target Analyzer Advanced Hacking Suite > --- WEAPON (3) ------- Quantum Companion > --- INVENTORY (5) ---- Micro Antimatter Reactor Light Quantum Reactor Improved Antigrav System Peak State ------------ > --- POWER ------------ Vortex Chain Reactor > --- PROPULSION ------- Gyrokinetic Inverter Gyrokinetic Inverter Gyrokinetic Inverter Improved Antigrav System Improved Gyrokinetic Inverter Antigrav Array > --- UTILITY ---------- Coolant Network Experimental Optical Array Improved Melee Analysis Suite Advanced Melee Analysis Suite Improved Force Booster Advanced Transmission Jammer Centrium Heavy Armor Plating Advanced Shield Generator Advanced Hacking Suite > --- WEAPON ----------- Core Stripper Quantum Companion > --- INVENTORY -------- Vortex Chain Reactor Centrium Heavy Armor Plating Phase Redirector [Rating: 193] Favorites ----------- Power Light Angular Momentum Engine Engine Light Angular Momentum Engine Power Core Reinforced Fission Core Reactor Light Antimatter Reactor Propulsion Gyrokinetic Inverter Treads Light Treads Leg Flexi-carbon Leg Wheel Overtuned Scrapsphere Hover Unit Gyrokinetic Inverter Utility Microactuators Device Microactuators Storage Large Storage Unit Processor A0-MCA's Component Scanner Hackware Advanced Hacking Suite Protection Hardened Medium Armor Plating Artifact Phase Redirector Weapon Companion Sword Energy Gun Plasma Rifle Energy Cannon Beam Cannon Ballistic Gun Makeshift Shrapnel Gun Launcher Grenade Launcher Special Weapon RU-N14's Throwing Claymores Impact Weapon Core Stripper Slashing Weapon Companion Sword Piercing Weapon Force Lance Build | -11 -10 -10 -9 -9 -6 -6 -6 -6 -5 -5 -5 -5 -5 -4 -4 -4 -4 -4 -3 -2 -2 -2 ------- Run | Yrd Mat Sub Rec Scr Fac Low Low Zio Pro Fac Upp Upp Zhi Pro Fac Was Fac Ext Res Res Qua Frg Slots Evolved 16 | . . . . . 8 . . . . 2 . . . . 2 . . . 2 2 . . Power 1 | . . . . . 1 . . . . . . . . . . . . . . . . . Propulsion 5 | . . . . . 2 . . . . . . . . . 1 . . . 1 1 . . Utility 9 | . . . . . 4 . . . . 2 . . . . 1 . . . 1 1 . . Weapon 1 | . . . . . 1 . . . . . . . . . . . . . . . . . Parts Attached 247 | 8 4 3 3 6 21 9 13 4 9 28 2 7 8 5 1 3 33 10 30 8 9 23 Power 50 | 1 . 1 . 1 5 1 3 . . 8 1 1 1 . . 1 6 3 7 2 2 6 Engine 16 | 1 . 1 . 1 4 1 3 . . 3 . . . . . . 1 1 . . . . Core 9 | . . . . . 1 . . . . 3 1 1 . . . . 2 1 . . . . Reactor 25 | . . . . . . . . . . 2 . . 1 . . 1 3 1 7 2 2 6 Propulsion 58 | 2 . . 1 1 7 2 3 . 4 9 . 1 3 . 1 . 8 . 3 1 . 12 Treads 11 | 2 . . 1 1 . . 1 . 3 1 . . . . . . . . . . . 2 Leg 13 | . . . . . 5 2 2 . . 4 . . . . . . . . . . . . Wheel 3 | . . . . . 2 . . . 1 . . . . . . . . . . . . . Hover 31 | . . . . . . . . . . 4 . 1 3 . 1 . 8 . 3 1 . 10 Flight . | . . . . . . . . . . . . . . . . . . . . . . . Utility 102 | 2 . . 2 1 6 3 6 1 2 9 1 5 4 5 . 2 15 5 17 5 6 5 Device 56 | 1 . . . . 5 3 2 1 1 3 . 1 1 3 . 2 11 2 9 3 4 4 Storage 5 | 1 . . 1 1 . . . . . . . . 1 . . . . . . 1 . . Processor 13 | . . . . . . . . . . 2 . . . . . . 2 1 7 . . 1 Hackware 5 | . . . . . . . . . 1 1 . . 1 1 . . 1 . . . . . Protection 22 | . . . 1 . 1 . 4 . . 3 1 4 1 1 . . 1 2 1 1 1 . Artifact 1 | . . . . . . . . . . . . . . . . . . . . . 1 . Weapon 37 | 3 4 2 . 3 3 3 1 3 3 2 . . . . . . 4 2 3 . 1 . Energy Gun 7 | 2 . 1 . . 2 2 . . . . . . . . . . . . . . . . Energy Cannon 1 | . 1 . . . . . . . . . . . . . . . . . . . . . Ballistic Gun 8 | 1 2 1 . 2 1 . 1 . . . . . . . . . . . . . . . Ballistic Cannon . | . . . . . . . . . . . . . . . . . . . . . . . Launcher 2 | . 1 . . . . . . . . . . . . . . . . . 1 . . . Special Weapon 4 | . . . . . . . . 3 1 . . . . . . . . . . . . . Impact Weapon 1 | . . . . . . . . . . . . . . . . . . . . . 1 . Slashing Weapon 8 | . . . . 1 . . . . 2 . . . . . . . 2 2 1 . . . Piercing Weapon 6 | . . . . . . 1 . . . 2 . . . . . . 2 . 1 . . . Special Melee Weapon . | . . . . . . . . . . . . . . . . . . . . . . . Unidentified Prototypes 15 | . . . . 1 . . . 2 . . . . 1 . . . . . 3 1 7 . Parts Lost 104 | . . 1 . . 6 1 11 . 7 10 2 13 . 1 . . 20 1 6 1 . 24 Power 21 | . . . . . 3 1 2 . 1 2 1 1 . . . . 4 . 3 1 . 2 Propulsion 29 | . . . . . . . 4 . 4 3 . 3 . . . . 5 . . . . 10 Utility 45 | . . . . . 3 . 3 . 2 4 1 9 . 1 . . 7 1 3 . . 11 Weapon 9 | . . 1 . . . . 2 . . 1 . . . . . . 4 . . . . 1 Highest Loss Streak 15 | . . 1 . . 2 1 5 . 6 2 1 3 . 1 . . 15 1 4 1 . 9 To Critical Strikes . | . . . . . . . . . . . . . . . . . . . . . . . Average Backups 7 | . 3 6 6 8 7 10 11 12 10 10 11 8 5 5 4 4 3 4 3 2 3 2 Power . | . 1 1 1 1 . . . 1 1 1 1 . . . . . . . . . . . Propulsion 1 | . . 3 3 2 2 1 . . . 4 5 4 4 4 3 3 1 1 . . . . Utility 2 | . . . . 1 1 3 6 6 5 2 3 1 . . . . . . 1 1 1 1 Weapon 2 | . 1 1 2 3 2 5 4 5 3 1 1 . . . . . . 1 . . . . Tool/Special . | . . . . . . . . . . . . . . . . . . . . . . . Unused Backups 32 | . . . . 9 1 4 . . 3 11 . 1 . . . . . . . . . 3 Power 6 | . . . . 2 . . . . . 2 . . . . . . . . . . . 2 Propulsion 12 | . . . . 3 1 . . . . 7 . . . . . . . . . . . 1 Utility 4 | . . . . 1 . . . . . 2 . 1 . . . . . . . . . . Weapon 10 | . . . . 3 . 4 . . 3 . . . . . . . . . . . . . Tool/Special . | . . . . . . . . . . . . . . . . . . . . . . . Average Slot Usage (%) 89 | . 100 100 100 99 84 81 87 97 91 87 87 76 50 85 82 85 83 95 91 89 86 75 Engine 7 | . 14 14 14 14 11 5 10 13 10 4 . . . . . . . . . . . . Reactor 1 | . . . . . . . . . . 2 . . 1 5 5 5 4 5 8 7 7 5 Treads 9 | . 28 28 28 28 9 . 1 6 7 11 . . . . . . . . . . . 2 Leg 4 | . . . . . 7 21 19 13 10 5 . . . . . . . . . . . . Wheel 1 | . . . . . 8 . 1 6 5 1 . . . . . . . . . . . . Hover 8 | . . . . . . . . . . 2 23 20 16 23 26 26 23 26 26 26 26 22 Device 14 | . 14 14 8 . 9 26 19 21 24 19 10 4 1 12 13 16 18 20 16 15 16 10 Storage 6 | . 14 14 14 14 6 6 6 6 6 5 5 4 1 5 5 5 1 . . . . . Processor 4 | . . . . . . . . . . 5 11 6 5 5 5 5 9 14 15 17 15 14 Hackware 2 | . . . . . . . . . 1 5 5 4 1 7 10 10 9 5 4 4 4 4 Protection 6 | . . . 5 14 9 . 7 11 4 3 5 6 1 5 . . . 3 3 4 4 6 Energy Gun 2 | . 14 7 14 3 6 12 10 . . . . . . . . . . . . . . . Ballistic Gun 4 | . 9 14 14 24 6 . . . . . . . . . . . . . . . . . Special Weapon 1 | . . . . . . . . 10 5 . . . . . . . . . . . . . Slashing Weapon 6 | . . . . . 5 6 6 6 9 11 11 11 10 5 5 5 6 7 10 8 6 3 Piercing Weapon 1 | . . . . . . . . . . . 5 5 5 11 10 10 4 7 1 4 2 . Peak Build Rating 193 | 7 7 9 11 22 74 70 73 79 79 94 89 97 92 107 117 138 143 120 147 168 193 192 Average Rating 76 | 4 6 8 9 17 56 64 65 72 66 76 84 76 60 101 114 122 111 114 130 165 174 171 On Entrance 75 | . 7 7 9 11 22 69 69 58 79 55 84 78 41 92 104 110 138 93 111 137 167 192 Naked Turns . | . . . . . . . . . . . . . . . . . . . . . . . Heaviest Build 100 | 15 16 17 26 36 76 52 86 84 77 80 64 100 36 46 35 65 57 61 72 84 85 99 Greatest Support 120 | 40 40 40 43 43 83 78 73 35 35 103 56 56 50 62 58 73 73 61 73 85 85 120 Greatest Overweight (x) 10 | . . . . . 9 . 10 8 7 3 1 2 . . . 1 . . . . 1 2 Average Overweight (x) . | . . . . . 2 . 1 2 1 . . . . . . . . . . . . . Largest Inventory Capacity 15 | 8 8 8 10 15 15 15 15 15 15 15 15 15 5 5 5 5 5 5 5 5 5 5 Average Capacity 10 | 6 8 8 8 10 15 15 15 15 15 15 15 13 5 5 5 5 5 5 5 5 5 5 Most Carried 15 | 1 6 7 8 13 13 14 15 15 15 15 13 13 5 5 4 5 5 5 5 5 5 5 Average Carried 8 | . 3 6 6 9 7 11 13 14 12 11 11 8 4 5 4 4 3 4 4 3 4 3 Final Capacity 15 | 8 8 8 10 15 15 15 15 15 15 15 15 5 5 5 5 5 5 5 5 5 5 5 Final Carried 15 | 1 6 7 8 13 7 14 13 15 9 10 13 5 5 5 4 5 5 5 3 4 5 3 Class Distribution -------------------- 33% | Mutant 20% | Scavenger-Mutant 20% | Gladiator 12% | Scavenger-Gladiator 5% | Hacker-Gladiator 4% | Scrapper Dominant Class ---------------- Mutant | -10/Materials Mutant | -10/Subcaves Mutant | -9/Recycling Mutant | -9/Scraptown Scrapper | -6/Factory Mutant | -6/Lower Caves Mutant | -6/Lower Caves Scavenger-Mutant | -6/Zion Scavenger-Mutant | -5/Proximity Caves Scavenger-Gladiator | -5/Factory Gladiator | -5/Upper Caves Scavenger-Mutant | -5/Upper Caves Mutant | -5/Zhirov Mutant | -4/Proximity Caves Hacker-Mutant | -4/Factory Hacker-Mutant | -4/Waste Hacker-Gladiator | -4/Factory Scavenger-Gladiator | -4/Extension Gladiator | -3/Research Gladiator | -2/Research Gladiator | -2/Quarantine Gladiator | -2/Protoforge Resources | -11 -10 -10 -9 -9 -6 -6 -6 -6 -5 -5 -5 -5 -5 -4 -4 -4 -4 -4 -3 -2 -2 -2 ----------- Run | Yrd Mat Sub Rec Scr Fac Low Low Zio Pro Fac Upp Upp Zhi Pro Fac Was Fac Ext Res Res Qua Frg Matter Collected 3801 | 280 43 26 202 70 315 144 168 35 89 326 70 96 203 219 . . 381 170 413 110 136 305 Remotely 86 | . . . . . . . . . . . . . . . . . 86 . . . . . Salvage Created 13302 | 18 54 22 50 . 1028 410 824 . 274 2326 702 268 203 80 10 . 966 409 1975 970 417 2296 Parts 513 | 4 6 6 3 . 36 18 32 . 12 82 15 11 4 3 2 . 56 13 101 20 . 89 Haulers Intercepted 9 | . 1 . . . . . . . . 1 . . . . . . 1 . 4 2 . . Recyclers Shooed 3 | . . . . . 1 . . . . . . . . . . . . . 1 1 . . Parts Field Recycled . | . . . . . . . . . . . . . . . . . . . . . . . Retrieved Matter . | . . . . . . . . . . . . . . . . . . . . . . . Parts Self-Destructed 72 | . . 3 . . . 12 17 . 12 . 13 9 3 3 . . . . . . . . Prevented . | . . . . . . . . . . . . . . . . . . . . . . . Kills | -11 -10 -10 -9 -9 -6 -6 -6 -6 -5 -5 -5 -5 -5 -4 -4 -4 -4 -4 -3 -2 -2 -2 ------- Run | Yrd Mat Sub Rec Scr Fac Low Low Zio Pro Fac Upp Upp Zhi Pro Fac Was Fac Ext Res Res Qua Frg Combat Hostiles Destroyed 157 | . 2 4 1 . 14 6 9 . 7 36 7 6 . 1 . . 14 2 17 3 1 27 Melee 118 | . . . . . 11 4 7 . 3 29 7 6 . 1 . . 13 1 13 3 . 20 Guns 8 | . . . 1 . 3 2 2 . . . . . . . . . . . . . . . Cannons 9 | . . . . . . . . . 2 1 . . . . . . 1 . 3 . . 2 AOE 14 | . 2 4 . . . . . . 2 6 . . . . . . . . . . . . Classes Destroyed 20 | 1 2 1 1 . 4 1 3 . 1 1 . . . . . . 2 1 1 . 1 . Worker 6 | . . . . . 1 . . . . 1 . . . . 1 . 2 . 1 . . . Builder 3 | . . . . . . . . . . . . . . . . . . 1 1 1 . . Tunneler 2 | 1 . . . . . . . . . . . . . . . . . . 1 . . . Hauler 9 | . 1 . . . . . . . . 1 . . . . . . 1 . 4 2 . . Recycler 9 | . . . . . 2 . . . . 2 . . . . . . . 1 1 3 . . Mechanic 3 | . . . . . . . . . . 1 . . . . . . 1 . 1 . . . Operator 4 | . . . . . . . . . . . . . . . . . 2 . 1 . . 1 Turret 2 | . . 2 . . . . . . . . . . . . . . . . . . . . Watcher 10 | . . . . . . . . . . . . . . . . . 1 2 2 2 . 3 Swarmer 28 | . 2 4 . . 3 3 3 . 1 . . 3 . . . . 6 . . . . 3 Cutter 3 | . . . . . . . . . . . . . . . . . . . 3 . . . Grunt 62 | . . . . . 4 2 4 . 3 25 4 . . . . . . . 9 3 . 8 Brawler 2 | . . . . . . . . . 1 . 1 . . . . . . . . . . . Sentry 21 | . . . 1 . 4 . . . 1 3 1 1 . 1 . . 1 2 1 . . 5 Hunter 6 | . . . . . . . 1 . . 1 . 1 . . . . 1 . 1 . . 1 Programmer 24 | . . . . . 3 . . . . 7 . 1 . . . . 5 . 2 . . 6 Behemoth 6 | . . . . . . . 1 . 1 . 1 . . . . . 1 . 1 . . 1 Hotshot 3 | . . . . . . . . . . . . . . . . . . . . . . 3 Fortress 1 | . . . . . . . . . . . . . . . . . . . . . 1 . Packrat 1 | . . . . . . . 1 . . . . . . . . . . . . . . . Tinkerer 1 | . . . . . . . 1 . . . . . . . . . . . . . . . Thief 1 | . . . . . . 1 . . . . . . . . . . . . . . . . Best Kill Streak 8 | 1 3 5 1 . 6 3 3 . 3 7 4 2 . 1 1 . 5 2 8 7 1 5 Combat Bots Only 7 | . 2 4 1 . 6 3 3 . 3 7 4 2 . 1 . . 5 1 5 1 1 5 Max Kills in Single Turn 3 | 1 1 2 1 . 1 1 1 . 2 3 1 1 . 1 1 . 1 1 1 1 1 1 Gunslinging . | . . . . . . . . . . . . . . . . . . . . . . . Exploded 3 | . 1 2 . . . . . . 2 3 . . . . . . . . . . . . Melee 2 | . . . . . 1 1 1 . 1 2 1 1 . 1 . . 1 1 1 1 . 1 Uniques/NPCs Destroyed . | . . . . . . . . . . . . . . . . . . . . . . . Combat | -11 -10 -10 -9 -9 -6 -6 -6 -6 -5 -5 -5 -5 -5 -4 -4 -4 -4 -4 -3 -2 -2 -2 -------- Run | Yrd Mat Sub Rec Scr Fac Low Low Zio Pro Fac Upp Upp Zhi Pro Fac Was Fac Ext Res Res Qua Frg Hostile Shots Fired 1959 | . 5 57 8 . 339 29 104 . 68 176 51 191 . 34 . 1 203 51 202 42 6 392 Missed 673 | . 4 23 3 . 112 11 25 . 18 59 16 54 . 9 . 1 85 29 75 18 2 129 Deflected 24 | . . . . . . . . . . . . . . . . . 10 1 5 1 . 7 Hits 1286 | . 1 34 5 . 227 18 79 . 50 117 35 137 . 25 . . 118 22 127 24 4 263 Melee 17 | . . . . . . 5 . . . . 4 . . . . . . . 8 . . . Projectile 1269 | . 1 34 5 . 227 13 79 . 50 117 31 137 . 25 . . 118 22 119 24 4 263 AOE 1 | . . . . . . . . . . 1 . . . . . . . . . . . . Critical Strikes 56 | . . . . . 7 1 2 . . 7 2 5 . 1 . . 6 1 7 1 . 16 Actively Blocked 1 | . . . . . . . . . . . . . . . . . . . . . . 1 Part Disruptions 2 | . . . . . . 1 . . . 1 . . . . . . . . . . . . Damage Taken 24942 | . 7 272 73 . 2412 341 1720 . 1127 2511 961 2428 . 392 . . 2848 556 2312 404 137 6441 Core 4522 | . . 31 15 . 248 67 193 . 220 238 162 399 . 91 . . 1030 94 246 45 . 1443 Absorbed by Shields 1320 | . . . . . . . . . . . . . . . . . . 88 397 135 . 700 Redirected to Core 184 | . . . . . . . . . . . . . . . . . . . . . . 184 Redirected to Shielding 123 | . . . . . . . . . . . . . . . . . . . . . . 123 Regen/Repaired (Parts) 2414 | . . . . 351 147 20 36 . . 169 . . . . . . 188 . 195 1308 . . Core Remaining (%) 47 | 100 . . . 81 . . . . 14 . . . . 11 . . . 2 75 . . . Volleys Fired 67 | 1 7 13 4 . 20 7 3 . 9 3 . . . . . . . . . . . . Largest 3 | 2 2 2 2 . 3 2 2 . 2 1 . . . . . . . . . . . . Hottest 232 | 90 90 50 80 . 232 150 150 . . . . . . . . . . . . . . . Shots Fired 117 | 2 11 19 8 . 42 13 8 . 11 3 . . . . . . . . . . . . Gun 93 | 2 8 12 8 . 42 13 8 . . . . . . . . . . . . . . . Cannon . | . . . . . . . . . . . . . . . . . . . . . . . Launcher 10 | . 3 7 . . . . . . . . . . . . . . . . . . . . Special 14 | . . . . . . . . . 11 3 . . . . . . . . . . . . Kinetic 43 | . 6 12 4 . 20 1 . . . . . . . . . . . . . . . . Thermal 48 | 1 1 . 4 . 22 12 8 . . . . . . . . . . . . . . . Explosive 24 | . 3 7 . . . . . . 11 3 . . . . . . . . . . . . Electromagnetic 2 | 1 1 . . . . . . . . . . . . . . . . . . . . . Robot Hit Streak 9 | 1 3 5 8 . 9 5 2 . 7 7 . . . . . . . . . . . . Robot Miss Streak 3 | 1 3 1 2 . 2 1 2 . 1 . . . . . . . . . . . . . Penetration Max 1 | . . . . . 1 . . . . . . . . . . . . . . . . . Secondary Targets 1 | . . . . . 1 . . . . . . . . . . . . . . . . . Max Gunslinging Chain 1 | . . . . . 1 . . . . . . . . . . . . . . . . . Autonomous 24 | . . . . . . . . . . . . . . . . 3 4 2 5 1 . 9 Shots Hit Robots 676 | 1 4 11 5 . 73 26 46 . 35 114 50 24 5 6 3 . 56 13 54 29 2 119 Core Hits 275 | 1 4 11 1 . 26 13 21 . 11 68 12 6 3 2 . . 20 5 29 7 1 34 Critical Kills . | . . . . . . . . . . . . . . . . . . . . . . . Critical Parts Destroyed 1 | . . . . . 1 . . . . . . . . . . . . . . . . . Critical Strikes 42 | . . . . . 3 2 . . 3 7 13 4 . . . . 2 . . . . 8 Burn 4 | . . . . . 2 2 . . . . . . . . . . . . . . . . Destroy 1 | . . . . . 1 . . . . . . . . . . . . . . . . . Sever 9 | . . . . . . . . . 3 3 2 1 . . . . . . . . . . Impale 4 | . . . . . . . . . . . 3 1 . . . . . . . . . . Melee Attacks 853 | . . . . . 54 23 53 1 40 147 74 41 6 13 5 . 88 23 95 42 5 143 Kinetic 8 | . . . . . . . . . . . . . . . . . . . . . 2 6 Impact . | . . . . . . . . . . . . . . . . . . . . . . . Slashing 824 | . . . . . 54 23 53 1 40 146 63 38 5 10 5 . 88 23 93 42 3 137 Piercing 21 | . . . . . . . . . . 1 11 3 1 3 . . . . 2 . . . Sneak Attacks 57 | . . . . . 2 . 4 . . 10 . . . . 2 . 7 2 17 6 . 7 Combat Hostiles 18 | . . . . . . . 2 . . 1 . . . . . . 2 . 7 . . 6 Follow-up Attacks 56 | . . . . . . . . . 7 20 16 5 1 2 . . 2 . 1 . . 2 Damage Inflicted 41848 | 13 143 390 86 . 2789 960 2304 . 2249 6156 2072 938 423 274 261 255 4863 1326 5366 2416 93 8471 Guns 1492 | 13 47 96 86 . 1000 177 73 . . . . . . . . . . . . . . . Cannons 2043 | . . . . . . . . . . . . . . . . 255 346 171 430 72 . 769 Explosions 2656 | . 96 294 . . . . . . 822 1444 . . . . . . . . . . . . Melee 35211 | . . . . . 1789 783 2231 . 1086 4607 2072 938 423 274 261 . 4517 1155 4936 2344 93 7702 Ramming . | . . . . . . . . . . . . . . . . . . . . . . . Kinetic 1039 | . 47 96 24 . 483 . . . . . . . . . . . . . . . 93 296 Thermal 842 | 13 . . 62 . 517 177 73 . . . . . . . . . . . . . . . Explosive 2656 | . 96 294 . . . . . . 822 1444 . . . . . . . . . . . . Electromagnetic . | . . . . . . . . . . . . . . . . . . . . . . . Impact . | . . . . . . . . . . . . . . . . . . . . . . . Slashing 34580 | . . . . . 1789 783 2231 . 1427 4653 1668 900 423 183 261 . 4517 1155 4840 2344 . 7406 Piercing 688 | . . . . . . . . . . 59 404 38 . 91 . . . . 96 . . . Phasic 2043 | . . . . . . . . . . . . . . . . 255 346 171 430 72 . 769 Highest Corruption 11 | . . . . . 5 5 5 5 . 5 5 11 11 11 . . 7 10 3 . . 11 Average Corruption 5 | . . . . . 2 5 5 5 . 4 5 7 11 11 . . 3 7 2 . . 4 Corruption Purged 1 | . . . . . . . . . . . . . . . . . 1 . . . . . Corruption Blocked 6 | . . . . . . . . . . . . . . . . . . . 3 3 . . Effects 132 | . . . . . 4 14 20 3 . 10 10 22 4 6 . . 9 6 13 . . 11 Message Errors 28 | . . . . . . 1 6 . . 2 1 6 . 2 . . 1 . 4 . . 5 Matter Fused 36 | . . . . . . 5 4 . . 2 2 6 2 1 . . 6 2 3 . . 3 Heat Flow Errors 12 | . . . . . 1 1 1 . . 1 3 2 1 1 . . . 1 . . . . Energy Discharges 12 | . . . . . 1 1 2 1 . 1 . 1 . . . . 1 . 3 . . 1 Parts Rejected 4 | . . . . . . . . . . 1 1 . . . . . . 1 1 . . . Data Loss (minor) 25 | . . . . . 1 3 5 2 . 3 3 3 . 1 . . 1 . 2 . . 1 Data Loss (major) 5 | . . . . . 1 1 . . . . . 2 . 1 . . . . . . . . Misfires 2 | . . . . . . . 2 . . . . . . . . . . . . . . . Alerts 7 | . . . . . . 2 . . . . . 1 1 . . . . 2 . . . 1 Misdirections 1 | . . . . . . . . . . . . 1 . . . . . . . . . . Overload Shots . | . . . . . . . . . . . . . . . . . . . . . . . Overflow Damage 3227 | . 2 . . . 135 24 238 . 120 335 154 72 125 . 70 . 328 . 724 477 . 423 Projectiles 142 | . . . . . . . . . . . . . . . . . 47 . . . . 95 Explosions 80 | . 2 . . . . . . . 46 32 . . . . . . . . . . . . Melee 3005 | . . . . . 135 24 238 . 74 303 154 72 125 . 70 . 281 . 724 477 . 328 Knockbacks . | . . . . . . . . . . . . . . . . . . . . . . . Impact . | . . . . . . . . . . . . . . . . . . . . . . . Kinetic . | . . . . . . . . . . . . . . . . . . . . . . . Secondary . | . . . . . . . . . . . . . . . . . . . . . . . Self-Inflicted Damage 32 | . . 32 . . . . . . . . . . . . . . . . . . . . Shots 1 | . . 1 . . . . . . . . . . . . . . . . . . . . Rammed . | . . . . . . . . . . . . . . . . . . . . . . . Targets Rammed . | . . . . . . . . . . . . . . . . . . . . . . . Kicked . | . . . . . . . . . . . . . . . . . . . . . . . Crushed . | . . . . . . . . . . . . . . . . . . . . . . . Highest Temperature 436 | 30 30 . 81 . 436 216 253 . . 205 237 342 179 263 . . 324 203 63 1 5 150 Average Temperature 88 | 18 18 . 41 . 171 36 55 . . 53 91 195 93 137 . . 107 44 12 1 4 68 Received Heat Transfer 5482 | . . 192 18 . 567 84 408 . 189 646 201 949 . . . . 833 108 300 90 18 879 Effects 17 | . . . . . 8 . 3 . . . . 2 . . . . 4 . . . . . Shutdowns 4 | . . . . . 4 . . . . . . . . . . . . . . . . . Energy Bleed 4 | . . . . . 2 . . . . . . 1 . . . . 1 . . . . . Interference 6 | . . . . . . . 3 . . . . . . . . . 3 . . . . . Short Circuit 3 | . . . . . 2 . . . . . . 1 . . . . . . . . . . Siege Activations . | . . . . . . . . . . . . . . . . . . . . . . . Martial Activations . | . . . . . . . . . . . . . . . . . . . . . . . Shielding Activations . | . . . . . . . . . . . . . . . . . . . . . . . Robots Disrupted 7 | . . . . . . . . . . 2 . . . . . . 1 . 2 . . 2 Combat Hostiles 6 | . . . . . . . . . . 1 . . . . . . 1 . 2 . . 2 Robots Corrupted . | . . . . . . . . . . . . . . . . . . . . . . . Combat Hostiles . | . . . . . . . . . . . . . . . . . . . . . . . Parts Fried 1 | . . . . . . . . . . . . . . . . . 1 . . . . . Impact Corruptions . | . . . . . . . . . . . . . . . . . . . . . . . Robots Melted . | . . . . . . . . . . . . . . . . . . . . . . . Combat Hostiles . | . . . . . . . . . . . . . . . . . . . . . . . Parts Melted 4 | . . . . . 3 . . . . 1 . . . . . . . . . . . . Heat Transferred 1912 | 37 . . 75 . 1050 600 150 . . . . . . . . . . . . . . . Parts Sabotaged . | . . . . . . . . . . . . . . . . . . . . . . . Parts Stolen 3 | . . . . . . 3 . . . . . . . . . . . . . . . . Parts Stripped 88 | . . . . . . . . . . . . . . . . . . 8 8 7 18 47 Power Chain Reactions . | . . . . . . . . . . . . . . . . . . . . . . . Alert | -11 -10 -10 -9 -9 -6 -6 -6 -6 -5 -5 -5 -5 -5 -4 -4 -4 -4 -4 -3 -2 -2 -2 ------- Run | Yrd Mat Sub Rec Scr Fac Low Low Zio Pro Fac Upp Upp Zhi Pro Fac Was Fac Ext Res Res Qua Frg Maximum Alert Level 3 | . . . . . . . . . . 3 . . . . . . . . 1 1 . 2 Low Security (%) 68 | 100 100 . 100 . 100 . . . . . . . . . 100 100 100 100 68 72 100 60 Level 1 15 | . . . . . . . . . . 19 . . . . . . . . 31 27 . 37 Level 2 5 | . . . . . . . . . . 27 . . . . . . . . . . . 1 Level 3 10 | . . . . . . . . . . 52 . . . . . . . . . . . . Level 4 . | . . . . . . . . . . . . . . . . . . . . . . . Level 5 . | . . . . . . . . . . . . . . . . . . . . . . . High Security . | . . . . . . . . . . . . . . . . . . . . . . . Max Security . | . . . . . . . . . . . . . . . . . . . . . . . Peak Influence 952 | 5 64 . 82 . 178 . . . . 952 . . . . 5 1 145 146 369 233 94 430 Initial 927 | . 3 . 26 . . . . . . 927 . . . . . 1 . . 47 204 94 33 Average 209 | . 7 . 25 . 64 . . . . 679 . . . . 1 . 27 57 133 190 78 179 Influence Increases 7200 | 5 64 165 244 . 413 145 265 . 175 2274 210 265 10 20 7 . 506 328 842 173 86 1003 Destroy 0b10 Robot/C 3260 | . 40 120 20 . 280 100 180 . 140 720 140 120 . 20 . . 280 140 340 60 20 540 Destroy 0b10 Robot/NC 275 | 5 5 . . . 15 10 15 . 10 25 5 . 10 . 5 . 30 20 60 40 . 20 Destroy Leader 638 | . 2 . . . 80 20 40 . 20 152 20 10 . . . . 54 14 92 8 . 126 Allied During Kill 105 | . . . . . . . . . 5 . . . . . . . . 86 . . . 14 Successful Hack 384 | . . . 44 . 11 . . . . 60 . . . . . . 21 32 112 29 3 72 Select Force Hacks 180 | . . . 180 . . . . . . . . . . . . . . . . . . . Disable Machine 135 | . . . . . 15 . . . . 60 . . . . . . 15 15 . . 30 . Anti-Garrison Action 150 | . . . . . . . . . . . . . . . . . . . 150 . . . Destroy Structure 288 | . 17 . . . 12 . . . . 102 . . . . 2 . 16 6 58 21 3 51 Advance Influence 900 | . . . . . . . . . . 900 . . . . . . . . . . . . Partial Spotted 180 | . . . . . . . . . . 15 . . . . . . 15 15 15 15 30 75 Lose Combat Pursuer 705 | . . 45 . . . 15 30 . . 240 45 135 . . . . 75 . 15 . . 105 Influence Decreases 6856 | . 25 154 299 . 247 309 226 41 131 1413 586 573 231 20 2 5 506 237 570 367 195 719 Entered New Map 1142 | . 2 22 29 . . 62 2 41 . 17 336 101 221 . . 4 . . 44 159 75 27 Time Decay 3833 | . 23 122 270 . 187 237 143 . 131 546 230 342 10 20 2 1 216 147 466 198 120 422 Search Patrol Dispatched 450 | . . . . . . . . . . 450 . . . . . . . . . . . . Lost Part 761 | . . 10 . . 60 10 81 . . 100 20 130 . . . . 30 10 60 10 . 240 Lost Ally 120 | . . . . . . . . . . . . . . . . . 10 80 . . . 30 Purge Threat 550 | . . . . . . . . . . 300 . . . . . . 250 . . . . . Squads Dispatched 51 | . . . . . 5 . . . . 9 . . . . 2 . 9 1 14 6 1 4 Investigation 19 | . . . . . . . . . . 5 . . . . 2 . 4 1 5 1 . 1 Extermination 16 | . . . . . 2 . . . . 4 . . . . . . 3 . 2 1 1 3 Reinforcement 11 | . . . . . . . . . . . . . . . . . 2 . 5 4 . . Assault 2 | . . . . . . . . . . . . . . . . . . . 2 . . . Garrison 3 | . . . . . 3 . . . . . . . . . . . . . . . . . Intercept . | . . . . . . . . . . . . . . . . . . . . . . . Searches Triggered 3 | . . . . . . . . . . 3 . . . . . . . . . . . . Construction Impeded . | . . . . . . . . . . . . . . . . . . . . . . . Haulers Reinforced 2 | . . . . . . . . . . . . . . . . . . . . 2 . . Active Scanning Responses . | . . . . . . . . . . . . . . . . . . . . . . . Cargo Convoy Interrupts . | . . . . . . . . . . . . . . . . . . . . . . . Stealth | -11 -10 -10 -9 -9 -6 -6 -6 -6 -5 -5 -5 -5 -5 -4 -4 -4 -4 -4 -3 -2 -2 -2 --------- Run | Yrd Mat Sub Rec Scr Fac Low Low Zio Pro Fac Upp Upp Zhi Pro Fac Was Fac Ext Res Res Qua Frg Distress Signals 10 | . 1 . . . 1 . . . . . . . . . . . 1 1 3 1 . 2 Communications Jammed 3 | . . . . . . . . . . . . . . . . . . . . 3 . . Distress Signals 3 | . . . . . . . . . . . . . . . . . . . . 3 . . Times Spotted 301 | . 4 7 1 . 15 10 10 . 13 52 10 19 . 5 1 4 31 15 43 10 1 50 Peak Tracking Total 12 | . 3 6 1 . 4 3 4 . 3 9 3 8 . 4 1 5 7 7 12 3 1 11 Tactical Retreats 26 | . . 1 . . . 1 2 . . 7 3 5 . . . . 3 . 1 . . 3 Traps | -11 -10 -10 -9 -9 -6 -6 -6 -6 -5 -5 -5 -5 -5 -4 -4 -4 -4 -4 -3 -2 -2 -2 ------- Run | Yrd Mat Sub Rec Scr Fac Low Low Zio Pro Fac Upp Upp Zhi Pro Fac Was Fac Ext Res Res Qua Frg Traps Triggered 7 | . . . . . . 1 . . . . . . . . 1 . 1 . 2 1 . 1 Indirectly . | . . . . . . . . . . . . . . . . . . . . . . . Trap Hack Attempts . | . . . . . . . . . . . . . . . . . . . . . . . Triggered . | . . . . . . . . . . . . . . . . . . . . . . . Disarmed . | . . . . . . . . . . . . . . . . . . . . . . . Reprogrammed . | . . . . . . . . . . . . . . . . . . . . . . . Reused . | . . . . . . . . . . . . . . . . . . . . . . . Traps Extracted . | . . . . . . . . . . . . . . . . . . . . . . . Installed . | . . . . . . . . . . . . . . . . . . . . . . . Triggered . | . . . . . . . . . . . . . . . . . . . . . . . Machines | -11 -10 -10 -9 -9 -6 -6 -6 -6 -5 -5 -5 -5 -5 -4 -4 -4 -4 -4 -3 -2 -2 -2 ---------- Run | Yrd Mat Sub Rec Scr Fac Low Low Zio Pro Fac Upp Upp Zhi Pro Fac Was Fac Ext Res Res Qua Frg Machines Disabled 14 | . . 4 . . 1 . . . . 4 . . . . . . 1 1 1 . 2 . Max in Single Turn 3 | . . 3 . . 1 . . . . 2 . . . . . . 1 1 1 . 1 . Garrison Access 4 | . . . . . . . . . . . . . . . . . 1 . 2 1 . . Machines Repaired . | . . . . . . . . . . . . . . . . . . . . . . . Machines Dismantled . | . . . . . . . . . . . . . . . . . . . . . . . Machines Sabotaged . | . . . . . . . . . . . . . . . . . . . . . . . Overloaded Fab Kills . | . . . . . . . . . . . . . . . . . . . . . . . Hacking | -11 -10 -10 -9 -9 -6 -6 -6 -6 -5 -5 -5 -5 -5 -4 -4 -4 -4 -4 -3 -2 -2 -2 --------- Run | Yrd Mat Sub Rec Scr Fac Low Low Zio Pro Fac Upp Upp Zhi Pro Fac Was Fac Ext Res Res Qua Frg Machines Accessed 101 | . 1 . 14 5 5 1 1 . . 11 . 1 5 . 2 . 21 6 13 5 4 6 Terminals 44 | . 1 . 6 . 4 . . . . 2 . . . . . . 12 6 5 2 2 4 Fabricators 7 | . . . . . 1 . . . . 2 . . . . . . 2 . . . . 2 Repair Stations 8 | . . . . . . . . . . 2 . . . . . . 2 . 1 2 1 . Recycling Units 19 | . . . 6 . . . . . . 4 . . . . 2 . 3 . 4 . . . Scanalyzers 4 | . . . . . . . . . . 1 . . . . . . 1 . 1 . 1 . Garrison Access 4 | . . . . . . . . . . . . . . . . . 1 . 2 1 . . Total Hacks 264 | . 2 . 35 15 11 1 1 . . 29 . 1 18 . 4 . 77 12 26 9 8 15 Successful 162 | . . . 26 15 3 1 1 . . 16 . 1 18 . 2 . 42 5 16 5 2 9 Failed 102 | . 2 . 9 . 8 . . . . 13 . . . . 2 . 35 7 10 4 6 6 Catastrophic 19 | . 1 . 3 . 1 . . . . 1 . . . . . . 7 1 2 2 . 1 Database Lockouts . | . . . . . . . . . . . . . . . . . . . . . . . Manual 129 | . 2 . 25 . 8 . . . . 17 . . . . 4 . 37 4 16 1 4 11 Terminals 134 | . 2 . 23 . 9 . . . . 10 . . . . . . 45 12 13 3 4 13 Fabricators 16 | . . . . . 2 . . . . 5 . . . . . . 7 . . . . 2 Repair Stations 20 | . . . . . . . . . . 3 . . . . . . 9 . 2 5 1 . Recycling Units 33 | . . . 9 . . . . . . 9 . . . . 4 . 5 . 6 . . . Scanalyzers 16 | . . . . . . . . . . 2 . . . . . . 9 . 2 . 3 . Garrison Access 6 | . . . . . . . . . . . . . . . . . 2 . 3 1 . . Terminal Hacks 85 | . . . 16 15 . 1 1 . . 5 . 1 18 . . . 15 4 5 1 . 3 Record 20 | . . . 3 11 . . . . . . . . 6 . . . . . . . . . Part Schematic 5 | . . . 1 . . . . . . . . . 4 . . . . . . . . . Robot Analysis 7 | . . . . 3 . . . . . . . . 4 . . . . . . . . . Prototype ID Bank 13 | . . . 8 . . . . . . . . . 4 . . . 1 . . . . . Open Door 8 | . . . . 1 . 1 1 . . . . 1 . . . . 1 3 . . . . Level Access Points 4 | . . . . . . . . . . 1 . . . . . . 1 . 1 . . 1 Branch Access Points 3 | . . . . . . . . . . 1 . . . . . . 1 . 1 . . . Machine Index 1 | . . . . . . . . . . . . . . . . . 1 . . . . . Terminal Index 4 | . . . 1 . . . . . . 1 . . . . . . 1 . . 1 . . Recycling Unit Index 2 | . . . 1 . . . . . . . . . . . . . 1 . . . . . Alert Level 6 | . . . 1 . . . . . . . . . . . . . 3 . 2 . . . Unreport Threat 4 | . . . . . . . . . . 2 . . . . . . 2 . . . . . Locate Traps 3 | . . . . . . . . . . . . . . . . . 1 1 . . . 1 Dispatch Records 1 | . . . . . . . . . . . . . . . . . 1 . . . . . Recall Extermination 1 | . . . . . . . . . . . . . . . . . 1 . . . . . Zone Layout 3 | . . . 1 . . . . . . . . . . . . . . . 1 . . 1 Fabricator Hacks 10 | . . . . . 1 . . . . 3 . . . . . . 4 . . . . 2 Load Schematic 5 | . . . . . 1 . . . . 1 . . . . . . 3 . . . . . Build 5 | . . . . . . . . . . 2 . . . . . . 1 . . . . 2 Repair Station Hacks 13 | . . . . . . . . . . 2 . . . . . . 6 . 2 3 . . Scan Component 7 | . . . . . . . . . . 1 . . . . . . 3 . 1 2 . . Repair 6 | . . . . . . . . . . 1 . . . . . . 3 . 1 1 . . Recycling Unit Hacks . | . . . . . . . . . . . . . . . . . . . . . . . Scanalyzer 8 | . . . . . . . . . . . . . . . . . 7 . . . 1 . Insert Component 5 | . . . . . . . . . . . . . . . . . 4 . . . 1 . Analyze 3 | . . . . . . . . . . . . . . . . . 3 . . . . . Garrison Access Hacks 3 | . . . . . . . . . . . . . . . . . 1 . 1 1 . . Seal Access 3 | . . . . . . . . . . . . . . . . . 1 . 1 1 . . Unauthorized Hacks 40 | . . . 8 . 2 . . . . 5 . . . . 2 . 9 1 8 . 1 4 Terminals 20 | . . . 2 . 2 . . . . 2 . . . . . . 5 1 3 . 1 4 Assimilate 4 | . . . . . . . . . . . . . . . . . 2 . 1 . . 1 Botnet 13 | . . . 2 . 1 . . . . 1 . . . . . . 3 1 2 . 1 2 Disrupt 1 | . . . . . . . . . . . . . . . . . . . . . . 1 Operators 2 | . . . . . 1 . . . . 1 . . . . . . . . . . . . Fabricators 1 | . . . . . . . . . . . . . . . . . 1 . . . . . Recompile 1 | . . . . . . . . . . . . . . . . . 1 . . . . . Repair Stations . | . . . . . . . . . . . . . . . . . . . . . . . Recycling Units 18 | . . . 6 . . . . . . 3 . . . . 2 . 3 . 4 . . . Tunnel 6 | . . . 6 . . . . . . . . . . . . . . . . . . . Fedlink 12 | . . . . . . . . . . 3 . . . . 2 . 3 . 4 . . . Scanalyzers 1 | . . . . . . . . . . . . . . . . . . . 1 . . . Researchers 1 | . . . . . . . . . . . . . . . . . . . 1 . . . Garrison Access . | . . . . . . . . . . . . . . . . . . . . . . . Data Cores Recovered 2 | . . . . . . . . . . . . . . . . . 1 . . . . 1 Used . | . . . . . . . . . . . . . . . . . . . . . . . Hacking Detections 65 | . 1 . 7 . 5 . . . . 9 . . . . 1 . 14 5 9 4 4 6 Full Trace Events 5 | . . . . . . . . . . 2 . . . . . . . 1 1 1 . . Feedback Events . | . . . . . . . . . . . . . . . . . . . . . . . Feedback Blocked . | . . . . . . . . . . . . . . . . . . . . . . . Robot Schematics Acquired 4 | . . . . . . . . 4 . . . . . . . . . . . . . . Robots Built . | . . . . . . . . . . . . . . . . . . . . . . . Authchips . | . . . . . . . . . . . . . . . . . . . . . . . Time . | . . . . . . . . . . . . . . . . . . . . . . . Total Robot Build Rating . | . . . . . . . . . . . . . . . . . . . . . . . Part Schematics Acquired 21 | . . . 1 . . . . 14 . . . . 4 . . . 2 . . . . . Parts Built 6 | . . . . . . . . . . 4 . . . . . . 2 . . . . . Authchips 1 | . . . . . . . . . . . . . . . . . 1 . . . . . Time 275 | . . . . . . . . . . 97 . . . . . . 58 . . . . 120 Total Part Build Rating 42 | . . . . . . . . . . 28 . . . . . . 14 . . . . . Parts Repaired 6 | . . . . . . . . . . 1 . . . . . . 3 . 1 1 . . Time 248 | . . . . . . . . . . 25 . . . . . . 155 . 14 54 . . Parts Recycled . | . . . . . . . . . . . . . . . . . . . . . . . Recycled Matter . | . . . . . . . . . . . . . . . . . . . . . . . Retrieved Matter . | . . . . . . . . . . . . . . . . . . . . . . . Retrieved Components . | . . . . . . . . . . . . . . . . . . . . . . . Parts Scanalyzed 2 | . . . . . . . . . . . . . . . . . 2 . . . . . Part Schematics Acquired 2 | . . . . . . . . . . . . . . . . . 2 . . . . . Parts Damaged 1 | . . . . . . . . . . . . . . . . . 1 . . . . . Bothacking | -11 -10 -10 -9 -9 -6 -6 -6 -6 -5 -5 -5 -5 -5 -4 -4 -4 -4 -4 -3 -2 -2 -2 ------------ Run | Yrd Mat Sub Rec Scr Fac Low Low Zio Pro Fac Upp Upp Zhi Pro Fac Was Fac Ext Res Res Qua Frg Used RIF Installer . | . . . . . . . . . . . . . . . . . . . . . . . Robots Hacked . | . . . . . . . . . . . . . . . . . . . . . . . Non-combat . | . . . . . . . . . . . . . . . . . . . . . . . Combat . | . . . . . . . . . . . . . . . . . . . . . . . Robot Hacks Applied . | . . . . . . . . . . . . . . . . . . . . . . . Relay Couplers Released 2 | . . . . . . . . . . . . . . . . . . . 2 . . . Machine Destruction 2 | . . . . . . . . . . . . . . . . . . . 2 . . . Fabnet Peak Effective % . | . . . . . . . . . . . . . . . . . . . . . . . Robots Rewired 9 | . . . . . . . . . . . . . . . . . . 8 . . . 1 Allies Hacked . | . . . . . . . . . . . . . . . . . . . . . . . Hacks Repelled . | . . . . . . . . . . . . . . . . . . . . . . . Allies | -11 -10 -10 -9 -9 -6 -6 -6 -6 -5 -5 -5 -5 -5 -4 -4 -4 -4 -4 -3 -2 -2 -2 -------- Run | Yrd Mat Sub Rec Scr Fac Low Low Zio Pro Fac Upp Upp Zhi Pro Fac Was Fac Ext Res Res Qua Frg Total Allies 18 | . . . . . . . . 3 . . . . . . . . 2 11 . . . 2 Largest Group 10 | . . . . . . . . 3 3 . . . . . . . 1 10 . . . 2 Highest-Rated Group 528 | . . . . . . . . 79 79 . . . . . . . 26 528 . . . 137 Highest-Rated Ally 159 | . . . . . . . . 29 29 . . . . . . . 26 159 . . . 92 Total Orders 11 | . . . . . . . . . . . . . . . . . . 11 . . . . ROAM 2 | . . . . . . . . . . . . . . . . . . 2 . . . . FOLLOW 3 | . . . . . . . . . . . . . . . . . . 3 . . . . GUARD 6 | . . . . . . . . . . . . . . . . . . 6 . . . . Ally Attacks 55 | . . . . . . . . . 22 . . . . . . . . 29 . . . 4 Total Damage 1183 | . . . . . . . . . 250 . . . . . . . . 743 . . . 190 Kills 6 | . . . . . . . . . 1 . . . . . . . . 5 . . . . Allies Corrupted 1 | . . . . . . . . . . . . . . . . . . 1 . . . . Allies Melted 1 | . . . . . . . . . . . . . . . . . . 1 . . . . Intel | -11 -10 -10 -9 -9 -6 -6 -6 -6 -5 -5 -5 -5 -5 -4 -4 -4 -4 -4 -3 -2 -2 -2 ------- Run | Yrd Mat Sub Rec Scr Fac Low Low Zio Pro Fac Upp Upp Zhi Pro Fac Was Fac Ext Res Res Qua Frg Active Infowar (turns) 10190 | 4 252 298 530 . . 446 566 1788 1465 1032 454 223 . 121 31 54 546 21 665 407 248 1039 Optics 2122 | . . . . . . . . . . . . . . . . . . . 428 407 248 1039 Sensors 722 | . . . . . . . . . . . . . . . . . 422 21 279 . . . IFF 5974 | . . . . . . 446 566 1788 1465 1032 454 223 . . . . . . . . . . Terrain 141 | . . . . . . . . . . . . . . 119 22 . . . . . . . Traps 1 | . . . . . . . . . . . . . . . . . . . 1 . . . Seismic 1084 | 4 252 298 530 . . . . . . . . . . . . . . . . . . . T.N.C. 205 | . . . . . . . . . . . . . . . . . . . 205 . . . Cloaking 327 | . . . . . . . . . . . . . . 118 31 54 124 . . . . . Jamming 1249 | . . . . . . . . . . . . . . 1 . . . . . 303 212 733 Robot Analysis Total 7 | . . . . 3 . . . . . . . . 4 . . . . . . . . . Derelict Logs Recovered 9 | . . 2 . . . 1 3 . 1 . . 2 . . . . . . . . . . Drone Launches . | . . . . . . . . . . . . . . . . . . . . . . . Drone Recoveries . | . . . . . . . . . . . . . . . . . . . . . . . Exploration | -11 -10 -10 -9 -9 -6 -6 -6 -6 -5 -5 -5 -5 -5 -4 -4 -4 -4 -4 -3 -2 -2 -2 ------------- Run | Yrd Mat Sub Rec Scr Fac Low Low Zio Pro Fac Upp Upp Zhi Pro Fac Was Fac Ext Res Res Qua Frg Turns Passed 16470 | 74 252 298 851 2286 679 679 628 1788 1465 1564 488 772 131 189 31 54 980 360 1207 407 248 1039 Spaces Moved 12009 | 39 139 164 498 1406 390 524 375 750 774 857 464 506 165 293 49 105 1181 347 1211 513 414 845 Core 3 | 3 . . . . . . . . . . . . . . . . . . . . . . Treads 2672 | 36 139 164 498 1406 2 . . . . 318 . . . . . . . . . . . 109 Legs 2326 | . . . . . 98 524 320 647 513 224 . . . . . . . . . . . . Wheels 882 | . . . . . 290 . 55 103 261 173 . . . . . . . . . . . . Hover 6126 | . . . . . . . . . . 142 464 506 165 293 49 105 1181 347 1211 513 414 736 Flight . | . . . . . . . . . . . . . . . . . . . . . . . Fastest Speed 27 | 50 160 160 160 160 105 105 117 150 130 71 71 71 45 30 44 28 27 59 52 48 46 41 Average Speed 109 | 151 160 160 160 160 115 111 125 237 175 135 71 129 63 44 44 44 55 59 55 48 47 63 Slowest Speed 330 | 160 160 160 160 160 240 117 330 260 260 245 141 217 77 45 44 96 62 59 59 50 91 250 Overloaded Moves 45 | . . . . . . . . . . . . . . 11 . 5 29 . . . . . Propulsion Burnouts . | . . . . . . . . . . . . . . . . . . . . . . . Robots Hopped . | . . . . . . . . . . . . . . . . . . . . . . . Potential Cave-ins . | . . . . . . . . . . . . . . . . . . . . . . . Cave-ins Triggered . | . . . . . . . . . . . . . . . . . . . . . . . Teleports 1 | . . . . . . . . . . . . . . . . . . . 1 . . . Exploration Rate (%) 46 | 4 25 13 92 83 12 71 56 81 91 19 59 79 60 54 3 61 33 44 37 13 42 45 Regions Visited 22 Branch Regions 14 Pre-discovered Areas 15 | . . 1 6 2 . . . 2 . 1 . . 3 . . . . . . . . . Known Exits Taken 5 | . . . . . . . . . . 1 . . . 1 . . 1 1 1 . . . Unknown Exits Taken 15 | 1 1 1 1 1 1 1 1 1 1 . 1 1 1 . . . . . . 1 1 . Scrap Searched 26 | . . . . 5 . 4 3 2 5 . 1 2 . 4 . . . . . . . . Spaces Dug 95 | . . . . . . 1 1 . 7 6 9 3 . 4 1 . 8 . 30 7 1 17 Terrain Destroyed 343 | . 28 29 . . 11 2 1 . 122 70 9 3 . 4 1 . 8 . 30 7 1 17 Melee 95 | . . . . . . 1 1 . 7 6 9 3 . 4 1 . 8 . 30 7 1 17 Projectile 14 | . . . . . 11 1 . . 2 . . . . . . . . . . . . . AOE 234 | . 28 29 . . . . . . 113 64 . . . . . . . . . . . . Terrain Rammed . | . . . . . . . . . . . . . . . . . . . . . . . Walls Destroyed . | . . . . . . . . . . . . . . . . . . . . . . . Machines Disabled . | . . . . . . . . . . . . . . . . . . . . . . . Actions | -11 -10 -10 -9 -9 -6 -6 -6 -6 -5 -5 -5 -5 -5 -4 -4 -4 -4 -4 -3 -2 -2 -2 --------- Run | Yrd Mat Sub Rec Scr Fac Low Low Zio Pro Fac Upp Upp Zhi Pro Fac Was Fac Ext Res Res Qua Frg Total 14321 | 49 157 181 545 1450 531 593 473 757 839 1194 560 575 181 333 56 110 1389 479 1627 625 458 1159 Wait 823 | . . . 34 . 23 14 16 . 10 119 35 24 . 22 . 2 63 63 233 47 6 112 Move 11987 | 38 138 163 497 1405 389 523 374 749 773 856 463 505 164 292 49 104 1180 345 1210 512 413 845 Hop . | . . . . . . . . . . . . . . . . . . . . . . . Pick Up 111 | 1 5 . 2 18 8 4 6 2 1 26 4 2 1 . . 1 8 . 4 4 2 12 Fast Attach 179 | 8 3 2 1 2 8 8 9 3 7 17 1 3 9 6 . 3 27 8 27 5 11 11 Attach 82 | . . 1 1 . 9 1 5 . 3 12 2 5 1 . 1 . 7 2 8 7 3 14 Detach 37 | . . 2 . 1 . 5 1 . . 2 1 . . . . . 3 1 10 5 3 3 Swap 53 | . 1 . 2 5 9 1 4 1 2 7 . 1 . . . . 6 1 7 1 . 5 Drop 174 | 1 3 . 4 19 11 7 5 1 5 30 1 4 2 3 1 . 14 4 27 2 15 15 Fire 67 | 1 7 13 4 . 20 7 3 . 9 3 . . . . . . . . . . . . Melee 764 | . . . . . 54 23 50 1 29 119 53 31 4 10 5 . 81 23 93 42 5 141 Ram . | . . . . . . . . . . . . . . . . . . . . . . . Kick . | . . . . . . . . . . . . . . . . . . . . . . . Crush . | . . . . . . . . . . . . . . . . . . . . . . . Escape Stasis 9 | . . . . . . . . . . . . . . . . . . 1 8 . . . Rewire 35 | . . . . . . . . . . 3 . . . . . . . 31 . . . 1 Trap . | . . . . . . . . . . . . . . . . . . . . . . . Miscellaneous . | . . . . . . . . . . . . . . . . . . . . . . . Route ------- -11/Scrapyard -10/Materials -10/Subcaves -9/Recycling (discovered 2 exits: [*Fac] / *Scr) -9/Scraptown -6/Factory -6/Lower Caves -6/Lower Caves (discovered 2 exits: *Fac / [*Zio]) -6/Zion -5/Proximity Caves -5/Factory (discovered 6 exits: Fac x4 / *Upp x2) -5/Upper Caves -5/Upper Caves (discovered 2 exits: *Fac / *Zhi) -5/Zhirov -4/Proximity Caves -4/Factory -4/Waste -4/Factory (discovered 9 exits: Res x4 / *Upp x2 / *Ext x2 / Arm) -4/Extension -3/Research (discovered 5 exits: *Res x3 / Tes x2) -2/Research -2/Quarantine (discovered 2 exits: [*Sec] / *Frg) -2/Protoforge (discovered 1 exit: *Acc) History --------- Turn | Location | Event 30 | -11/Scrapyard | Discovered new exit (range 15) 75 | -11/Scrapyard | Entered Materials 307 | -10/Materials | Build established: Mutant 311 | -10/Materials | Discovered new exit (range 11) 327 | -10/Materials | Entered Subcaves 427 | -10/Subcaves | Ambushed by Subdweller buried in earth 431 | -10/Subcaves | Discovered new exit (range 16) 510 | -10/Subcaves | Learned Materials terminal intel 625 | -10/Subcaves | Entered Recycling 1397 | -9/Recycling | Discovered new exit (range 16) 1431 | -9/Recycling | Scanned before Scraplab entrance 1453 | -9/Recycling | Entered Scraplab 1472 | -9/Recycling | Discovered new exit (range 2) 1476 | -9/Recycling | Entered Scraptown 1561 | -9/Scraptown | Visited Fellowship of the Rings 1616 | -9/Scraptown | Visited UFD Registry 1616 | -9/Scraptown | Registered with UFD as "Monounit" 1638 | -9/Scraptown | Visited Shadow of the Wyrm 1659 | -9/Scraptown | Visited Assassins FH 1673 | -9/Scraptown | Visited CR-KLE's Repair Center 1715 | -9/Scraptown | Visited Cyclists 1728 | -9/Scraptown | Entered Cyclist Reading Room 1734 | -9/Scraptown | Learned location of Exiles (-9) 1734 | -9/Scraptown | Learned location of Zion (-6) 1756 | -9/Scraptown | Visited IN-MT5's Study 1793 | -9/Scraptown | Visited Cave Peace 1939 | -9/Scraptown | Visited Science Testing Area 1961 | -9/Scraptown | Visited Scrap Suit Storage 2019 | -9/Scraptown | Visited Analyses Database 2052 | -9/Scraptown | Visited Supply Room 2114 | -9/Scraptown | Visited DA-N13 Charitable Foundation 2120 | -9/Scraptown | Found DCF Scrap (32 items) 2154 | -9/Scraptown | Visited A0-MCA Data Center 2164 | -9/Scraptown | Given an A- rating by A0-MCA 2171 | -9/Scraptown | Found A0-MCA's Component Scanner 2200 | -9/Scraptown | Visited Chapter 10 2226 | -9/Scraptown | Visited Sword Containment 2277 | -9/Scraptown | Visited Modified Component R&D 3119 | -9/Scraptown | CR-KLE repaired 6 parts 3239 | -9/Scraptown | Found Scrap Suit 3673 | -9/Scraptown | Met Optimus 3673 | -9/Scraptown | Accepted into 0bPrime 3756 | -9/Scraptown | Discovered new exit (range 5) 3760 | -9/Scraptown | Civil war broke out across Scraptown 3762 | -9/Scraptown | Entered Factory 3762 | -6/Factory | Evolved 8 slots: Power x1, Propulsion x2, Utility x4, Weapon x1 4058 | -6/Factory | Build established: Scrapper 4194 | -6/Factory | Garrison activated, responded to threat 4385 | -6/Factory | Discovered new exit (range 8) 4441 | -6/Factory | Entered Lower Caves 4442 | -6/Lower Caves | Encountered a Warlord checkpoint 4535 | -6/Lower Caves | Learned Factory machine intel 4735 | -6/Lower Caves | Build established: Mutant 5107 | -6/Lower Caves | Discovered new exit (range 12) 5120 | -6/Lower Caves | Entered another Lower Caves area 5149 | -6/Lower Caves | Discovered new exit (range 12) 5376 | -6/Lower Caves | Learned Factory garrison access intel 5387 | -6/Lower Caves | Learned Factory machine intel 5409 | -6/Lower Caves | Learned location of 1 exit from Factory 5534 | -6/Lower Caves | Spotted B-75 Beast 5578 | -6/Lower Caves | Destroyed B-75 Beast 5597 | -6/Lower Caves | Lost 5 parts (3n1u1w) 5676 | -6/Lower Caves | Core integrity fell below 50% 5719 | -6/Lower Caves | Lost 5 parts (1p1n2u1w) 5741 | -6/Lower Caves | Discovered new exit (range 7) 5748 | -6/Lower Caves | Entered Zion 5810 | -6/Zion | System corruption cleaned by Quarantine Array 5977 | -6/Zion | Build established: Scavenger-Mutant 6057 | -6/Zion | Found Prototype Special Weapon 6057 | -6/Zion | Identified RU-N14's Throwing Claymores 6061 | -6/Zion | Found RU-N14's Throwing Claymores 6065 | -6/Zion | Found RU-N14's Throwing Claymores 6069 | -6/Zion | Found RU-N14's Throwing Claymores 6515 | -6/Zion | Turned away by Imprinter 6890 | -6/Zion | Gained Derelict followers 7051 | -6/Zion | Given the Hacking Drone Bay 7051 | -6/Zion | Found Prototype Device 7051 | -6/Zion | Identified Hacking Drone Bay 7516 | -6/Zion | Discovered new exit (range 8) 7536 | -6/Zion | Entered Proximity Caves 7536 | -5/Proximity Caves | Accompanied by 3 allies 7538 | -5/Proximity Caves | Spotter reported a threat 7539 | -5/Proximity Caves | Spotter reported a threat 7582 | -5/Proximity Caves | Learned Factory garrison access intel 7793 | -5/Proximity Caves | Spotter reported a threat 8052 | -5/Proximity Caves | Spotted B-75 Beast 8078 | -5/Proximity Caves | Spotter reported a threat 8249 | -5/Proximity Caves | Spotter reported a threat 8606 | -5/Proximity Caves | Core integrity fell below 20% 8645 | -5/Proximity Caves | Lost 6 parts (1p3n2u) 8663 | -5/Proximity Caves | Destroyed B-75 Beast 8667 | -5/Proximity Caves | Spotter reported a threat 8720 | -5/Proximity Caves | Spotter reported a threat 8917 | -5/Proximity Caves | Build established: Scavenger-Gladiator 8936 | -5/Proximity Caves | Attracted the attention of an 0b10 checkpoint 8989 | -5/Proximity Caves | Discovered new exit (range 5) 9001 | -5/Proximity Caves | Entered Factory 9001 | -5/Factory | Evolved 2 slots: Utility x2 9002 | -5/Factory | Identified exit to Factory 9003 | -5/Factory | Loaded intel: 323 machine locations 9004 | -5/Factory | Loaded intel: 4 garrison access locations 9231 | -5/Factory | Identified exit to Upper Caves 9259 | -5/Factory | Loaded intel: 8 recycling unit locations 9289 | -5/Factory | Learned location of Protoforge (-2) 9301 | -5/Factory | Search patrols dispatched 9601 | -5/Factory | Search patrols dispatched 9745 | -5/Factory | Repaired Imp. Medium Treads 9901 | -5/Factory | Search patrols dispatched 10194 | -5/Factory | Fabricated Force Lance? 10246 | -5/Factory | Destroyed 7 combat bots 10511 | -5/Factory | Fabricated Adv. Reaction Control System (x2) 10565 | -5/Factory | Entered Upper Caves 10565 | -5/Upper Caves | Spotted B-75 Beast 10613 | -5/Upper Caves | Destroyed B-75 Beast 10802 | -5/Upper Caves | Build established: Gladiator 11017 | -5/Upper Caves | Attracted the attention of an 0b10 checkpoint 11047 | -5/Upper Caves | Discovered new exit (range 5) 11053 | -5/Upper Caves | Entered another Upper Caves area 11067 | -5/Upper Caves | Discovered exit to Factory (range 14) 11149 | -5/Upper Caves | Learned 4 Factory zone layouts 11241 | -5/Upper Caves | Spotted B-75 Beast 11282 | -5/Upper Caves | Attracted the attention of an 0b10 checkpoint 11290 | -5/Upper Caves | Learned location of 1 exit from Proximity Caves 11337 | -5/Upper Caves | Core integrity fell below 50% 11509 | -5/Upper Caves | System corruption reached 10% 11537 | -5/Upper Caves | Lost 3 parts (1n2u) 11743 | -5/Upper Caves | Lost 3 parts (1p1n1u) 11816 | -5/Upper Caves | Discovered new exit (range 3) 11824 | -5/Upper Caves | Lost 3 parts (1n2u) 11825 | -5/Upper Caves | Entered Zhirov 11825 | -5/Zhirov | Discovered new exit (range 3) 11839 | -5/Zhirov | Met Zhirov 11853 | -5/Zhirov | Learned location of Quarantine (-2) 11853 | -5/Zhirov | Learned location of Command (-1) 11861 | -5/Zhirov | Zhirov requested help retrieving the SGEMP Prototype 11876 | -5/Zhirov | Found Alien Artifact 11876 | -5/Zhirov | Identified Integrated Reactor 11876 | -5/Zhirov | Installed Integrated Reactor, increased core energy generation (+10) 11939 | -5/Zhirov | Found Alien Artifact 11956 | -5/Zhirov | Entered Proximity Caves 12067 | -4/Proximity Caves | Build established: Mutant 12085 | -4/Proximity Caves | Attracted the attention of an 0b10 checkpoint 12085 | -4/Proximity Caves | Core integrity fell below 20% 12145 | -4/Proximity Caves | Entered Factory 12145 | -4/Factory | Evolved 2 slots: Propulsion x1, Utility x1 12146 | -4/Factory | Forged Quantum Companion 12147 | -4/Factory | Loaded intel: 293 machine locations 12148 | -4/Factory | Loaded intel: 4 garrison access locations 12161 | -4/Factory | Loaded intel: 8 recycling unit locations 12176 | -4/Factory | Sucked down chute 12176 | -4/Factory | Entered Waste 12189 | -4/Waste | Found Adv. Force Booster 12195 | -4/Waste | Spotted C-40 Crusher 12209 | -4/Waste | Spotted C-40 Crusher 12210 | -4/Waste | Spotted C-40 Crusher 12210 | -4/Waste | Spotted C-40 Crusher 12218 | -4/Waste | Discovered new exit (range 15) 12230 | -4/Waste | Entered Factory 12290 | -4/Factory | Identified exit to Upper Caves 12290 | -4/Factory | Identified exit to Extension 12290 | -4/Factory | Identified exit to Armory 12342 | -4/Factory | Spotted B-86 Titan 12425 | -4/Factory | Core integrity fell below 50% 12441 | -4/Factory | Destroyed B-86 Titan 12464 | -4/Factory | Lost 15 parts (3p5n5u2w) 12509 | -4/Factory | Identified Transdimensional Reconstructor 12630 | -4/Factory | Repaired Quantum Reactor 12782 | -4/Factory | Loaded intel: 8 recycling unit locations 12845 | -4/Factory | Build established: Hacker-Gladiator 12909 | -4/Factory | Identified exit to Research 13041 | -4/Factory | Fabricated Adv. Reaction Control System (x2) 13043 | -4/Factory | Core integrity fell below 20% 13050 | -4/Factory | Repaired Gyrokinetic Inverter? 13172 | -4/Factory | Repaired Adv. Reaction Control System? 13210 | -4/Factory | Entered Extension 13239 | -4/Extension | Lost 3 parts (1p2u) 13269 | -4/Extension | Rescued a captive Derelict 13398 | -4/Extension | Rescued A7 13510 | -4/Extension | Rescued a captive Derelict 13535 | -4/Extension | System corruption reached 10% 13538 | -4/Extension | Spotted B-86 Titan 13544 | -4/Extension | Spotted B-86 Titan 13569 | -4/Extension | Discovered exit to Research (range 3) 13570 | -4/Extension | Entered Research 13570 | -3/Research | Evolved 2 slots: Propulsion x1, Utility x1 13596 | -3/Research | Lost 4 allies 13738 | -3/Research | Repaired Imp. Medium Armor Plating 13916 | -3/Research | Loaded intel: 5 recycling unit locations 13937 | -3/Research | Found Prototype Protection 13937 | -3/Research | Identified Centrium Heavy Armor Plating 13943 | -3/Research | Found Centrium Heavy Armor Plating 14094 | -3/Research | Spotted B-86 Titan 14100 | -3/Research | Build established: Gladiator 14101 | -3/Research | Destroyed B-86 Titan 14146 | -3/Research | Found Prototype Launcher 14146 | -3/Research | Identified Com. Tesla Bomb Launcher 14396 | -3/Research | Identified exit to Testing 14396 | -3/Research | Identified exit to Research 14500 | -3/Research | Warped through subspace 14777 | -3/Research | Entered another Research area 14777 | -2/Research | Evolved 2 slots: Propulsion x1, Utility x1 14788 | -2/Research | Lost 4 parts (2p2u) 15028 | -2/Research | Found Prototype Device 15031 | -2/Research | Identified Exp. Focal Shield 15071 | -2/Research | Spotted B-90 Cyclops 15122 | -2/Research | Discovered new exit (range 17) 15168 | -2/Research | Repaired Centrium Heavy Armor Plating 15184 | -2/Research | Entered Quarantine 15280 | -2/Quarantine | Spotted Alpha 7 15312 | -2/Quarantine | Found Alien Artifact 15329 | -2/Quarantine | Identified Phase Redirector 15342 | -2/Quarantine | Found Alien Impact Weapon 15342 | -2/Quarantine | Identified Core Stripper 15359 | -2/Quarantine | Spotted Fortress 15367 | -2/Quarantine | Destroyed Fortress 15375 | -2/Quarantine | Found Prototype Reactor 15375 | -2/Quarantine | Identified Vortex Chain Reactor 15380 | -2/Quarantine | Found Vortex Chain Reactor 15383 | -2/Quarantine | Found Prototype Device 15383 | -2/Quarantine | Identified Exp. EM Shield 15386 | -2/Quarantine | Found Prototype Device 15386 | -2/Quarantine | Identified Exp. Force Field 15389 | -2/Quarantine | Found Prototype Device 15389 | -2/Quarantine | Identified Thermal Barrier 15429 | -2/Quarantine | Discovered new exit (range 6) 15429 | -2/Quarantine | Discovered new exit (range 7) 15432 | -2/Quarantine | Entered Protoforge 15488 | -2/Protoforge | Superfortress began startup sequence 15498 | -2/Protoforge | Spotted Hotshot 15499 | -2/Protoforge | Spotted Hotshot 15569 | -2/Protoforge | Spotted B-90 Cyclops 15587 | -2/Protoforge | Destroyed Hotshot 15625 | -2/Protoforge | Destroyed Hotshot 15651 | -2/Protoforge | Discovered new exit (range 19) 15699 | -2/Protoforge | Lost 3 parts (1n2u) 15704 | -2/Protoforge | Destroyed B-90 Cyclops 15985 | -2/Protoforge | Spotted Hotshot 16091 | -2/Protoforge | Spotted Hotshot 16185 | -2/Protoforge | Spotted Hotshot 16215 | -2/Protoforge | Spotted Hotshot 16220 | -2/Protoforge | Identified exit to Access 16237 | -2/Protoforge | Rewired Hotshot 16241 | -2/Protoforge | Destroyed Hotshot 16383 | -2/Protoforge | Spotted AP7-3 16385 | -2/Protoforge | Spotted AP7-3 16422 | -2/Protoforge | Spotted EXE-6 16422 | -2/Protoforge | Spotted EXE-6 16437 | -2/Protoforge | Lost 7 parts (1p3n3u) 16449 | -2/Protoforge | System corruption reached 10% 16454 | -2/Protoforge | Core integrity fell below 50% 16467 | -2/Protoforge | Core integrity fell below 20% 16471 | -2/Protoforge | Destroyed by EXE-6 with Concept XC Strikerail Last Messages --------------- 16457_ Slug penetrates Machine. 16457_ Deflected attack with Quantum Companion. 16458_ NIRUFC#FXXVC>QNK/P,GUG8KONYP8ZGDZ 16458_ Adv. Melee Analysis Suite destroyed. 16461_ Machine disabled. 16462_ EXE-6 springs to life. 16462_ Penetrated by Slug. 16462_ Slug penetrates Forge Plexus. 16462_ EXE-6 springs to life. 16462_ Penetrated by Slug. 16462_ Imp. Gyrokinetic Inverter destroyed. 16468_ Penetrated by Slug. The surroundings shift and blur. 16470_ Slug penetrates M-36 Artificer. 16470_ Penetrated by Slug. 16470_ Exp. Heat Sink destroyed. 16470_ Antigrav System destroyed. 16470_ M-36 Artificer repairs P-80 Master Imp. Antigrav System. 16471_ Penetrated by Slug. Map ----- +----------------------------------------------------+ | " "" " ###"" F"###????????? | | "" """ " " " #"" ""#????????? | | """" " "" "" "" #" "####?????? | | " " " "" "# """#?????? | | " " "" # """#?????? | | "" " "" "" + """#?????? | | " "" """ "" " + F"#?????? | | " " "" """ # """#?????? | | " """ "" "" " """ "# "" #?????? | | " "" "" " "# ####?????? | | " """ " # #####????? | | " """ "" " "# """ #????? | | " " " " "" # """"#????? | | """" " " " " + "F""#????? | | """"""" "" """ " + ""#????? | | """""""" = " " " # """#????? | | """"""""" *%[ "" "" "" "# "" #????? | | """""""""" = "" #" "#####????? | | """"""""""" "" #"" ""#????????? | | """""""""""" 7" " "###"F ""###????????? | | """"""""""""" " """ " "#?#"""""#??????????? | | """"""""""""" "" 7""" "#?#"""""#??????????? | | """"""""""""" "" h "" " #?#######??????????? | | """""""""""""" "" m" "#??????????????????? | | """""""""""""" " " "" ""pp "#??????????????????? | | """""""""""""" @s"s"#??????????????????? | | """""""""""""" "" p #??????????????????? | | """""""""""""" " " """ #??????????????????? | | """""""""""""" "" ##?????????????????? | | """"""""""""""u " #?????????????????? | | """""""""""""" " "" "" #?????????????????? | | """""""""""""" " "" " EE##?????????????????? | | """"""""""""" "" " " #??????????????????? | | """"""""""""" """ " #??????????????????? | | """"""""""""" "" """ #??????????????????? | | """""""""""" " " #??????????????????? | | """"""""""" "" " " "" #??????????????????? | | """""""""" " " """" #??????????????????? | | """???""" " " " """ #??????????????????? | | """????? "" " " "" #??????????????????? | | ""???????"?"" " "" #??????????????????? | | ""????? "" "" #??????????????????? | | ???????"" "" """ """ #??????????????????? | | ???????? ""??" "" """" #??????????????????? | | ?????????? " " """" #??????????????????? | | ????????"" " "" """ "" #??????????????????? | | ????????"""""""" ?" #??????????????????? | | ????????? #??????????????????? | | ??????????""" " "" """" #??????????????????? | | ???????????"" "" " ?" #??????????????????? | +----------------------------------------------------+ Best States ------------- Heat Dissipation 139 Energy Generation 65 Energy Capacity 700 Matter Stores 590 Matter Capacity 600 Sight Range 23 Robot Scan Range 16 Terrain Scan Range 18 Terrain Scan Density 10 Jamming Range 16 Cloak Strength 4 Power Amplification 30 Additional Mass Support 12 Base Temperature (-) 200 Corruption Block 20 Armor Coverage 1200 Resistance: KI 30 Resistance: TH 50 Utility Shielding 90 Weapon Shielding 90 Melee Speed Boost 40 Phase Shifting 5 Evasion (%) 68 Melee Accuracy 19 Target Analysis 8 Core Analysis 6 Recoil Reduction 4 Force Boost 40 Offensive Hacking 23 Defensive Hacking 14 Authchip Count 1 Item Schematics ----------------- Lgt. Armored Exoskeleton | -9/Recycling | Hacked Variable Charge Gun | -6/Zion | Archive Adv. Signal Interpreter | -6/Zion | Archive Imp. Point Defense System | -6/Zion | Archive Adv. Reaction Control System | -6/Zion | Archive Plasma Rifle | -6/Zion | Archive Remote Force Field | -6/Zion | Archive Force Field | -6/Zion | Archive Adv. Shield Generator | -6/Zion | Archive Enh. Optical Array | -6/Zion | Archive EM Shield | -6/Zion | Archive Imp. Thermal Generator | -6/Zion | Archive Antigrav System | -6/Zion | Archive Flexi-carbon Leg | -6/Zion | Archive Imp. Recalibrator | -6/Zion | Archive Assault Drone Bay | -5/Zhirov | Free Exp. Heat Sink | -5/Zhirov | Free Exp. Optical Array | -5/Zhirov | Free Imp. Arc Thrower | -5/Zhirov | Free Quantum Reactor | -4/Factory | Scanalyzed Cld. Linear Gravjet | -4/Factory | Scanalyzed Robot Schematics ------------------ B-48 Gladiator | -6/Zion | Archive G-50 Soldier | -6/Zion | Archive R-10 Processor | -6/Zion | Archive X-77 Beamer | -6/Zion | Archive Fabricated ------------ Force Lance | x2 | -5/Factory | Preloaded Adv. Reaction Control System | x2 | -5/Factory Adv. Reaction Control System | x2 | -4/Factory | Authchip Repaired ---------- Imp. Medium Treads | 15% | -5/Factory Quantum Reactor | 5% | -4/Factory Gyrokinetic Inverter | 32% | -4/Factory Adv. Reaction Control System | 18% | -4/Factory Imp. Medium Armor Plating | 18% | -3/Research Centrium Heavy Armor Plating | 12% | -2/Research Alien Tech Used ----------------- Integrated Reactor Transdimensional Reconstructor Core Stripper Phase Redirector Achievements -------------- Assassin Challenges ------------ None Game ------ Seed GravitonSuperdenseRefractor Manual? 0 Play Time 02:57:17 Cumulative 405.6 hours Start 2025.05.16 @ 15:04:29 End 2025.05.16 @ 18:08:08 Sessions 1 Manual Loads 0 Difficulty Rogue Special Mode None Game No. 401 Rogue 396 Adventurer 5 Explorer 0 Win Type - Total 9 Types 6/0/0/3/0/0/0/0/0/0 Lore% 81 Gallery% 78 Achievement% 71 Wizard Run 0 Options --------- Layout 1 ASCII 0 Keyboard 0 Movement Mouse Keybinds 0 Fullscreen 1 Font 24/Terminus Map View 50x35 Zoom Use 0% Tactical HUD 1 Map Filters NONE Filters NONE Steam 1 RUN: bc628ef6-6477-4d73-8e92-9d70e0de65fd